[Event "Tournoi fermé pour norme de MI de Créon 2025"]
[Site "CREON, France"]
[Date "2025.07.28"]
[Round "1.2"]
[White "Mohammad Nubairshah"]
[Black "Malka, Samuel"]
[Result "1/2-1/2"]
[TimeControl "1h30/40 - 30' + [30'']"]
[WhiteElo "2378"]
[BlackElo "2268"]

1. c4 {[%clk 01:30:53]} {[%emt 00:00:06]} e6 {[%clk 01:30:46]} {[%emt
00:00:15]} 2. Nf3 {[%clk 01:31:02]} {[%emt 00:00:20]} d5 {[%clk 01:31:07]}
{[%emt 00:00:08]} 3. g3 {[%clk 01:31:29]} {[%emt 00:00:03]} Nf6 {[%clk
01:31:27]} {[%emt 00:00:09]} 4. Bg2 {[%clk 01:31:57]} {[%emt 00:00:03]} d4
{[%clk 01:31:46]} {[%emt 00:00:11]} 5. O-O {[%clk 01:31:56]} {[%emt 00:00:31]}
Nc6 {[%clk 01:32:07]} {[%emt 00:00:09]} 6. d3 {[%clk 01:30:46]} {[%emt
00:01:41]} Bc5 {[%clk 01:32:06]} {[%emt 00:00:31]} 7. e4 {[%clk 01:26:00]}
{[%emt 00:05:18]} e5 {[%clk 01:29:05]} {[%emt 00:03:29]} 8. Nh4 {[%clk
01:18:35]} {[%emt 00:07:55]} O-O {[%clk 01:24:39]} {[%emt 00:04:55]} 9. Na3
{[%clk 01:18:24]} {[%emt 00:00:42]} Bg4 {[%clk 01:16:13]} {[%emt 00:08:55]} 10.
f3 {[%clk 01:18:15]} {[%emt 00:00:40]} Bd7 {[%clk 01:16:01]} {[%emt 00:00:41]}
11. Nc2 {[%clk 01:18:22]} {[%emt 00:00:25]} a5 {[%clk 01:15:27]} {[%emt
00:01:03]} 12. Rb1 {[%clk 01:17:50]} {[%emt 00:01:03]} Nb4 {[%clk 01:08:43]}
{[%emt 00:07:13]} 13. a3 {[%clk 01:14:49]} {[%emt 00:03:32]} Nxc2 {[%clk
01:09:08]} {[%emt 00:00:04]} 14. Qxc2 {[%clk 01:15:15]} {[%emt 00:00:04]} a4
{[%clk 01:09:30]} {[%emt 00:00:09]} 15. Bd2 {[%clk 01:10:48]} {[%emt 00:04:57]}
Ra6 {[%clk 01:05:59]} {[%emt 00:04:00]} 16. Rbe1 {[%clk 01:07:34]} {[%emt
00:03:44]} g6 {[%clk 00:57:43]} {[%emt 00:08:46]} 17. Kh1 {[%clk 00:57:17]}
{[%emt 00:10:48]} Re8 {[%clk 00:53:42]} {[%emt 00:04:31]} 18. Bg5 {[%clk
00:47:58]} {[%emt 00:09:49]} Be7 {[%clk 00:53:03]} {[%emt 00:01:09]} 19. Qe2
{[%clk 00:48:19]} {[%emt 00:00:09]} Nh5 {[%clk 00:50:41]} {[%emt 00:02:51]} 20.
Bxe7 {[%clk 00:48:06]} {[%emt 00:00:44]} Qxe7 {[%clk 00:48:54]} {[%emt
00:02:15]} 21. Rf2 {[%clk 00:42:03]} {[%emt 00:06:34]} Rb6 {[%clk 00:32:25]}
{[%emt 00:17:00]} 22. Bf1 {[%clk 00:40:48]} {[%emt 00:01:44]} Qg5 {[%clk
00:25:21]} {[%emt 00:07:35]} 23. Ng2 {[%clk 00:35:38]} {[%emt 00:05:40]} f5
{[%clk 00:24:00]} {[%emt 00:01:50]} 24. c5 {[%clk 00:32:25]} {[%emt 00:03:45]}
Rf6 {[%clk 00:22:13]} {[%emt 00:02:16]} 25. Qd2 {[%clk 00:18:45]} {[%emt
00:14:10]} Qxd2 {[%clk 00:20:55]} {[%emt 00:01:48]} 26. Rxd2 {[%clk 00:19:14]}
{[%emt 00:00:02]} f4 {[%clk 00:15:12]} {[%emt 00:06:13]} 27. gxf4 {[%clk
00:13:48]} {[%emt 00:05:56]} Nxf4 {[%clk 00:15:40]} {[%emt 00:00:02]} 28. Nxf4
{[%clk 00:14:11]} {[%emt 00:00:06]} Rxf4 {[%clk 00:16:05]} {[%emt 00:00:04]} 29.
Be2 {[%clk 00:14:34]} {[%emt 00:00:08]} Bb5 {[%clk 00:14:02]} {[%emt 00:02:33]}
30. Rb1 {[%clk 00:13:24]} {[%emt 00:01:39]} Ra8 {[%clk 00:13:12]} {[%emt
00:01:19]} 31. Kg2 {[%clk 00:11:47]} {[%emt 00:02:08]} Kf7 {[%clk 00:13:15]}
{[%emt 00:00:28]} 32. b3 {[%clk 00:10:37]} {[%emt 00:01:40]} axb3 {[%clk
00:12:29]} {[%emt 00:01:16]} 33. Rxb3 {[%clk 00:11:06]} {[%emt 00:00:01]} c6
{[%clk 00:12:07]} {[%emt 00:00:51]} 34. Ra2 {[%clk 00:11:24]} {[%emt 00:00:11]}
g5 {[%clk 00:11:15]} {[%emt 00:01:22]} 35. a4 {[%clk 00:11:41]} {[%emt
00:00:13]} Kg6 {[%clk 00:11:25]} {[%emt 00:00:18]} 36. Rba3 {[%clk 00:06:28]}
{[%emt 00:05:45]} Ba6 {[%clk 00:11:47]} {[%emt 00:00:08]} 37. h3 {[%clk
00:06:33]} {[%emt 00:00:25]} Rff8 {[%clk 00:10:28]} {[%emt 00:01:48]} 1/2-1/2

[Event "Tournoi fermé pour norme de MI de Créon 2025"]
[Site "CREON, France"]
[Date "2025.07.28"]
[Round "1.4"]
[White "Jerez Perez, Alfonso"]
[Black "Le Hetet, Nicolas"]
[Result "1/2-1/2"]
[TimeControl "1h30/40 - 30' + [30'']"]
[WhiteElo "2328"]
[BlackElo "2288"]

1. e4 {[%clk 01:30:49]} {[%emt 00:00:11]} c5 {[%clk 01:30:41]} {[%emt
00:00:18]} 2. c3 {[%clk 01:31:07]} {[%emt 00:00:12]} d5 {[%clk 01:30:50]}
{[%emt 00:00:21]} 3. exd5 {[%clk 01:31:19]} {[%emt 00:00:18]} Qxd5 {[%clk
01:31:09]} {[%emt 00:00:11]} 4. d4 {[%clk 01:31:37]} {[%emt 00:00:11]} Nf6
{[%clk 01:31:12]} {[%emt 00:00:27]} 5. Nf3 {[%clk 01:31:53]} {[%emt 00:00:13]}
Nc6 {[%clk 01:31:01]} {[%emt 00:00:41]} 6. dxc5 {[%clk 01:32:02]} {[%emt
00:00:22]} Qxd1+ {[%clk 01:29:43]} {[%emt 00:01:48]} 7. Kxd1 {[%clk 01:32:08]}
{[%emt 00:00:24]} Bf5 {[%clk 01:30:05]} {[%emt 00:00:07]} 8. Be3 {[%clk
01:32:05]} {[%emt 00:00:34]} Nd5 {[%clk 01:29:23]} {[%emt 00:01:12]} 9. Bb5
{[%clk 01:15:31]} {[%emt 00:17:05]} O-O-O {[%clk 01:23:14]} {[%emt 00:06:38]}
10. Kc1 {[%clk 01:13:25]} {[%emt 00:02:35]} e5 {[%clk 01:20:45]} {[%emt
00:02:59]} 11. Bxc6 {[%clk 01:09:40]} {[%emt 00:04:15]} bxc6 {[%clk 01:20:10]}
{[%emt 00:01:05]} 12. b4 {[%clk 01:08:46]} {[%emt 00:01:24]} f6 {[%clk
01:04:39]} {[%emt 00:16:00]} 13. Kb2 {[%clk 01:04:36]} {[%emt 00:04:40]} g5
{[%clk 00:59:55]} {[%emt 00:05:14]} 14. Rd1 {[%clk 00:52:30]} {[%emt 00:12:36]}
Kc7 {[%clk 00:53:19]} {[%emt 00:07:06]} 15. Nbd2 {[%clk 00:45:39]} {[%emt
00:07:21]} Rb8 {[%clk 00:50:21]} {[%emt 00:03:28]} 16. Nb3 {[%clk 00:40:59]}
{[%emt 00:05:09]} h5 {[%clk 00:47:52]} {[%emt 00:02:59]} 17. Nfd2 {[%clk
00:34:50]} {[%emt 00:06:40]} Be7 {[%clk 00:44:13]} {[%emt 00:04:08]} 18. a3
{[%clk 00:30:19]} {[%emt 00:05:01]} Be6 {[%clk 00:41:39]} {[%emt 00:03:04]} 19.
c4 {[%clk 00:28:53]} {[%emt 00:01:57]} Nxe3 {[%clk 00:41:49]} {[%emt 00:00:20]}
20. fxe3 {[%clk 00:29:18]} {[%emt 00:00:04]} f5 {[%clk 00:31:57]} {[%emt
00:10:22]} 21. Kc3 {[%clk 00:26:00]} {[%emt 00:03:48]} Bf6 {[%clk 00:28:45]}
{[%emt 00:03:42]} 22. e4 {[%clk 00:26:16]} {[%emt 00:00:14]} f4 {[%clk
00:29:10]} {[%emt 00:00:05]} 23. a4 {[%clk 00:20:23]} {[%emt 00:06:23]} h4
{[%clk 00:24:02]} {[%emt 00:05:37]} 24. h3 {[%clk 00:18:30]} {[%emt 00:02:24]}
g4 {[%clk 00:24:23]} {[%emt 00:00:09]} 25. hxg4 {[%clk 00:18:55]} {[%emt
00:00:05]} h3 {[%clk 00:24:44]} {[%emt 00:00:08]} 26. g5 {[%clk 00:16:09]}
{[%emt 00:03:17]} Bxg5 {[%clk 00:23:27]} {[%emt 00:01:46]} 27. Nf3 {[%clk
00:16:17]} {[%emt 00:00:22]} Be7 {[%clk 00:21:19]} {[%emt 00:02:38]} 28. gxh3
{[%clk 00:16:28]} {[%emt 00:00:19]} Rxh3 {[%clk 00:21:45]} {[%emt 00:00:04]} 29.
Rd3 {[%clk 00:16:34]} {[%emt 00:00:23]} Rd8 {[%clk 00:20:57]} {[%emt 00:01:18]}
30. Rf1 {[%clk 00:13:33]} {[%emt 00:03:31]} Bg4 {[%clk 00:18:22]} {[%emt
00:03:05]} 31. Rxd8 {[%clk 00:12:05]} {[%emt 00:01:58]} Kxd8 {[%clk 00:18:21]}
{[%emt 00:00:31]} 32. Nbd2 {[%clk 00:12:30]} {[%emt 00:00:05]} a5 {[%clk
00:18:19]} {[%emt 00:00:32]} 33. Kc2 {[%clk 00:11:41]} {[%emt 00:01:19]} Bxf3
{[%clk 00:13:46]} {[%emt 00:05:02]} 34. Rxf3 {[%clk 00:10:24]} {[%emt
00:01:47]} Rh2 {[%clk 00:13:42]} {[%emt 00:00:34]} 35. Rd3+ {[%clk 00:10:49]}
{[%emt 00:00:06]} Kc7 {[%clk 00:14:08]} {[%emt 00:00:04]} 36. Kb3 {[%clk
00:10:47]} {[%emt 00:00:31]} Re2 {[%clk 00:13:34]} {[%emt 00:01:04]} 37. Kc3
{[%clk 00:08:38]} {[%emt 00:02:40]} axb4+ {[%clk 00:12:10]} {[%emt 00:01:53]}
38. Kxb4 {[%clk 00:08:29]} {[%emt 00:00:39]} Bh4 {[%clk 00:07:13]} {[%emt
00:05:26]} 39. Nf3 {[%clk 00:06:41]} {[%emt 00:02:19]} Be1+ {[%clk 00:07:36]}
{[%emt 00:00:07]} 40. Kb3 {[%clk 00:05:52]} {[%emt 00:01:20]} Rxe4 {[%clk
00:07:53]} {[%emt 00:00:13]} 41. Ng5 {[%clk 00:06:18]} {[%emt 00:00:03]} Re3
{[%clk 00:04:07]} {[%emt 00:04:15]} 42. Kc2 {[%clk 00:03:01]} {[%emt 00:03:48]}
Rxd3 {[%clk 00:25:20]} {[%emt 00:09:17]} 43. Kxd3 {[%clk 00:32:49]} {[%emt
00:00:42]} Bh4 {[%clk 00:25:45]} {[%emt 00:00:06]} 44. Nf3 {[%clk 00:32:18]}
{[%emt 00:01:00]} Bf6 {[%clk 00:26:09]} {[%emt 00:00:06]} 45. Ke4 {[%clk
00:32:06]} {[%emt 00:00:44]} Kb7 {[%clk 00:26:04]} {[%emt 00:00:34]} 46. Nd2
{[%clk 00:32:25]} {[%emt 00:00:10]} Ka6 {[%clk 00:26:17]} {[%emt 00:00:18]} 47.
Nb3 {[%clk 00:32:52]} {[%emt 00:00:04]} Bg5 {[%clk 00:23:08]} {[%emt 00:03:39]}
48. Kf3 {[%clk 00:32:22]} {[%emt 00:00:59]} Bh4 {[%clk 00:23:06]} {[%emt
00:00:32]} 49. Ke4 {[%clk 00:32:45]} {[%emt 00:00:07]} Be1 {[%clk 00:23:31]}
{[%emt 00:00:05]} 50. Kf3 {[%clk 00:32:57]} {[%emt 00:00:18]} Bb4 {[%clk
00:17:33]} {[%emt 00:06:29]} 51. Ke4 {[%clk 00:33:04]} {[%emt 00:00:23]} Ka7
{[%clk 00:17:14]} {[%emt 00:00:49]} 52. Kf3 {[%clk 00:33:18]} {[%emt 00:00:15]}
Kb7 {[%clk 00:17:41]} {[%emt 00:00:03]} 53. Ke4 {[%clk 00:33:29]} {[%emt
00:00:19]} Kc7 {[%clk 00:18:08]} {[%emt 00:00:04]} 54. Nc1 {[%clk 00:33:08]}
{[%emt 00:00:51]} Bxc5 {[%clk 00:18:30]} {[%emt 00:00:08]} 55. Nd3 {[%clk
00:33:23]} {[%emt 00:00:15]} Bd4 {[%clk 00:15:22]} {[%emt 00:03:38]} 56. Nxf4
{[%clk 00:30:25]} {[%emt 00:03:28]} exf4 {[%clk 00:14:16]} {[%emt 00:01:36]} 57.
Kxd4 {[%clk 00:30:51]} {[%emt 00:00:04]} Kb6 {[%clk 00:14:38]} {[%emt
00:00:08]} 58. Ke4 {[%clk 00:31:16]} {[%emt 00:00:04]} Ka5 {[%clk 00:15:01]}
{[%emt 00:00:08]} 59. Kxf4 {[%clk 00:31:36]} {[%emt 00:00:10]} Kxa4 {[%clk
00:15:27]} {[%emt 00:00:04]} 60. Ke4 {[%clk 00:31:56]} {[%emt 00:00:09]} Kb4
{[%clk 00:15:25]} {[%emt 00:00:33]} 61. Kd4 {[%clk 00:32:09]} {[%emt 00:00:17]}
Kb3 {[%clk 00:15:39]} {[%emt 00:00:17]} 62. Kc5 {[%clk 00:32:33]} {[%emt
00:00:06]} Kc3 {[%clk 00:16:07]} {[%emt 00:00:03]} 63. Kxc6 {[%clk 00:32:59]}
{[%emt 00:00:04]} Kxc4 {[%clk 00:16:34]} {[%emt 00:00:03]} 1/2-1/2

[Event "Tournoi fermé pour norme de MI de Créon 2025"]
[Site "CREON, France"]
[Date "2025.07.28"]
[Round "1.5"]
[White "Kocharin, Timur"]
[Black "Villegas, Pierre"]
[Result "1/2-1/2"]
[TimeControl "1h30/40 - 30' + [30'']"]
[WhiteElo "2302"]
[BlackElo "2291"]

1. d4 {[%clk 01:30:50]} {[%emt 00:00:09]} g6 {[%clk 01:30:19]} {[%emt
00:00:42]} 2. e4 {[%clk 01:30:49]} {[%emt 00:00:30]} Bg7 {[%clk 01:30:42]}
{[%emt 00:00:07]} 3. Nc3 {[%clk 01:30:33]} {[%emt 00:00:46]} d6 {[%clk
01:30:55]} {[%emt 00:00:18]} 4. Be3 {[%clk 01:30:41]} {[%emt 00:00:22]} a6
{[%clk 01:31:11]} {[%emt 00:00:14]} 5. g4 {[%clk 01:28:41]} {[%emt 00:02:29]}
b5 {[%clk 01:29:16]} {[%emt 00:02:25]} 6. Bg2 {[%clk 01:27:41]} {[%emt
00:01:30]} Bb7 {[%clk 01:29:03]} {[%emt 00:00:44]} 7. h4 {[%clk 01:27:22]}
{[%emt 00:00:48]} h5 {[%clk 01:13:58]} {[%emt 00:15:35]} 8. gxh5 {[%clk
01:22:29]} {[%emt 00:05:23]} Rxh5 {[%clk 01:13:23]} {[%emt 00:01:06]} 9. Bg5
{[%clk 01:16:40]} {[%emt 00:06:19]} c5 {[%clk 00:45:10]} {[%emt 00:28:43]} 10.
dxc5 {[%clk 01:02:52]} {[%emt 00:14:18]} dxc5 {[%clk 00:43:46]} {[%emt
00:01:54]} 11. Qxd8+ {[%clk 01:03:13]} {[%emt 00:00:09]} Kxd8 {[%clk 00:44:14]}
{[%emt 00:00:03]} 12. O-O-O+ {[%clk 01:03:29]} {[%emt 00:00:14]} Kc7 {[%clk
00:39:46]} {[%emt 00:04:58]} 13. Nd5+ {[%clk 01:00:31]} {[%emt 00:03:27]} Bxd5
{[%clk 00:39:43]} {[%emt 00:00:34]} 14. exd5 {[%clk 01:00:40]} {[%emt
00:00:21]} Kd6 {[%clk 00:34:37]} {[%emt 00:05:37]} 15. Bf3 {[%clk 01:00:12]}
{[%emt 00:00:57]} Rh8 {[%clk 00:34:53]} {[%emt 00:00:14]} 16. Bf4+ {[%clk
00:56:55]} {[%emt 00:03:47]} Be5 {[%clk 00:35:12]} {[%emt 00:00:11]} 17. Bxe5+
{[%clk 00:57:18]} {[%emt 00:00:06]} Kxe5 {[%clk 00:35:40]} {[%emt 00:00:03]} 18.
d6 {[%clk 00:54:59]} {[%emt 00:02:49]} Ra7 {[%clk 00:36:03]} {[%emt 00:00:07]}
19. Rd5+ {[%clk 00:51:20]} {[%emt 00:04:09]} Kf6 {[%clk 00:35:08]} {[%emt
00:01:25]} 20. dxe7 {[%clk 00:44:53]} {[%emt 00:06:57]} Nxe7 {[%clk 00:33:45]}
{[%emt 00:01:53]} 21. Rxc5 {[%clk 00:44:55]} {[%emt 00:00:29]} Nd7 {[%clk
00:32:53]} {[%emt 00:01:21]} 22. Rc3 {[%clk 00:44:20]} {[%emt 00:01:04]} Ne5
{[%clk 00:26:21]} {[%emt 00:07:03]} 23. Bd1 {[%clk 00:40:09]} {[%emt 00:04:41]}
Nd5 {[%clk 00:22:24]} {[%emt 00:04:27]} 24. Rg3 {[%clk 00:38:25]} {[%emt
00:02:14]} Rc7 {[%clk 00:21:27]} {[%emt 00:01:29]} 25. h5 {[%clk 00:32:43]}
{[%emt 00:06:12]} gxh5 {[%clk 00:18:50]} {[%emt 00:03:07]} 26. Rxh5 {[%clk
00:26:33]} {[%emt 00:06:40]} 1/2-1/2

[Event "Tournoi fermé pour norme de MI de Créon 2025"]
[Site "CREON, France"]
[Date "2025.07.28"]
[Round "1.3"]
[White "Lacan-Rus, David"]
[Black "Llari, Marc"]
[Result "1/2-1/2"]
[TimeControl "1h30/40 - 30' + [30'']"]
[WhiteElo "2369"]
[BlackElo "2341"]

1. e4 {[%clk 01:30:57]} {[%emt 00:00:02]} c5 {[%clk 01:30:58]} {[%emt
00:00:03]} 2. Nc3 {[%clk 01:30:51]} {[%emt 00:00:35]} Nc6 {[%clk 01:31:25]}
{[%emt 00:00:04]} 3. Bb5 {[%clk 01:30:57]} {[%emt 00:00:24]} Nd4 {[%clk
01:31:50]} {[%emt 00:00:05]} 4. Nf3 {[%clk 01:30:39]} {[%emt 00:00:47]} e6
{[%clk 01:31:47]} {[%emt 00:00:33]} 5. O-O {[%clk 01:30:32]} {[%emt 00:00:36]}
a6 {[%clk 01:32:15]} {[%emt 00:00:04]} 6. Bd3 {[%clk 01:30:54]} {[%emt
00:00:07]} Nc6 {[%clk 01:32:40]} {[%emt 00:00:05]} 7. b3 {[%clk 01:31:04]}
{[%emt 00:00:19]} d6 {[%clk 01:32:27]} {[%emt 00:00:43]} 8. Bb2 {[%clk
01:31:26]} {[%emt 00:00:08]} Nf6 {[%clk 01:32:48]} {[%emt 00:00:08]} 9. Re1
{[%clk 01:30:34]} {[%emt 00:01:23]} g6 {[%clk 01:33:06]} {[%emt 00:00:10]} 10.
e5 {[%clk 01:14:12]} {[%emt 00:16:55]} dxe5 {[%clk 01:31:39]} {[%emt 00:01:57]}
11. Nxe5 {[%clk 01:13:10]} {[%emt 00:01:31]} Nxe5 {[%clk 01:31:54]} {[%emt
00:00:16]} 12. Rxe5 {[%clk 01:13:22]} {[%emt 00:00:18]} Bg7 {[%clk 01:31:55]}
{[%emt 00:00:28]} 13. Re1 {[%clk 01:09:22]} {[%emt 00:04:30]} O-O {[%clk
01:31:11]} {[%emt 00:01:15]} 14. Qf3 {[%clk 01:02:08]} {[%emt 00:07:44]} Nd7
{[%clk 01:27:15]} {[%emt 00:04:25]} 15. Na4 {[%clk 00:58:46]} {[%emt 00:03:53]}
Bxb2 {[%clk 01:27:25]} {[%emt 00:00:20]} 16. Nxb2 {[%clk 00:59:11]} {[%emt
00:00:05]} Qf6 {[%clk 01:27:46]} {[%emt 00:00:08]} 17. Qxf6 {[%clk 00:58:07]}
{[%emt 00:01:35]} Nxf6 {[%clk 01:28:10]} {[%emt 00:00:06]} 18. a4 {[%clk
00:57:13]} {[%emt 00:01:24]} b6 {[%clk 01:24:15]} {[%emt 00:04:25]} 19. Nc4
{[%clk 00:54:38]} {[%emt 00:03:05]} Nd5 {[%clk 01:23:57]} {[%emt 00:00:46]} 20.
Be4 {[%clk 00:52:30]} {[%emt 00:02:40]} Rb8 {[%clk 01:19:34]} {[%emt 00:04:52]}
21. a5 {[%clk 00:48:37]} {[%emt 00:04:24]} b5 {[%clk 01:18:48]} {[%emt
00:01:15]} 22. Ne5 {[%clk 00:49:03]} {[%emt 00:00:04]} Nf6 {[%clk 01:14:33]}
{[%emt 00:04:44]} 23. Nd3 {[%clk 00:40:26]} {[%emt 00:09:09]} Nd7 {[%clk
01:11:20]} {[%emt 00:03:43]} 24. Bc6 {[%clk 00:36:16]} {[%emt 00:04:40]} c4
{[%clk 01:09:28]} {[%emt 00:02:22]} 25. Bxd7 {[%clk 00:32:03]} {[%emt
00:04:43]} cxd3 {[%clk 01:08:11]} {[%emt 00:01:47]} 26. Bxc8 {[%clk 00:32:29]}
{[%emt 00:00:05]} Rbxc8 {[%clk 01:08:28]} {[%emt 00:00:13]} 27. c3 {[%clk
00:32:55]} {[%emt 00:00:04]} Rfd8 {[%clk 01:08:32]} {[%emt 00:00:25]} 28. Re4
{[%clk 00:29:27]} {[%emt 00:03:57]} Rc5 {[%clk 01:07:02]} {[%emt 00:02:01]} 29.
f4 {[%clk 00:27:03]} {[%emt 00:02:55]} g5 {[%clk 01:05:46]} {[%emt 00:01:45]}
30. Kf2 {[%clk 00:21:20]} {[%emt 00:06:13]} gxf4 {[%clk 00:55:49]} {[%emt
00:10:27]} 31. Rxf4 {[%clk 00:21:47]} {[%emt 00:00:04]} h5 {[%clk 00:54:49]}
{[%emt 00:01:29]} 32. Re1 {[%clk 00:14:05]} {[%emt 00:08:13]} b4 {[%clk
00:53:18]} {[%emt 00:02:01]} 33. Rxb4 {[%clk 00:12:48]} {[%emt 00:01:48]} Rxa5
{[%clk 00:53:01]} {[%emt 00:00:46]} 34. Ree4 {[%clk 00:11:20]} {[%emt
00:01:58]} Rg5 {[%clk 00:50:51]} {[%emt 00:02:40]} 35. Rbd4 {[%clk 00:06:37]}
{[%emt 00:05:14]} Rb8 {[%clk 00:49:32]} {[%emt 00:01:48]} 36. b4 {[%clk
00:06:10]} {[%emt 00:00:58]} a5 {[%clk 00:49:57]} {[%emt 00:00:05]} 37. bxa5
{[%clk 00:06:04]} {[%emt 00:00:36]} Rxa5 {[%clk 00:49:48]} {[%emt 00:00:38]} 38.
Rxd3 {[%clk 00:06:30]} {[%emt 00:00:04]} Kg7 {[%clk 00:48:40]} {[%emt
00:01:37]} 39. Rd7 {[%clk 00:05:12]} {[%emt 00:01:50]} Kg6 {[%clk 00:48:23]}
{[%emt 00:00:47]} 40. Re3 {[%clk 00:04:47]} {[%emt 00:00:55]} Rf5+ {[%clk
00:47:16]} {[%emt 00:01:36]} 41. Ke2 {[%clk 00:02:52]} {[%emt 00:02:26]} Rb1
{[%clk 00:46:51]} {[%emt 00:00:54]} 42. Rf3 {[%clk 00:01:08]} {[%emt 00:02:15]}
Rxf3 {[%clk 00:46:09]} {[%emt 00:01:12]} 43. Kxf3 {[%clk 00:01:30]} {[%emt
00:00:08]} Rf1+ {[%clk 00:45:59]} {[%emt 00:00:39]} 44. Ke3 {[%clk 00:23:53]}
{[%emt 00:08:08]} Re1+ {[%clk 01:14:52]} {[%emt 00:01:37]} 45. Kf2 {[%clk
00:23:04]} {[%emt 00:01:20]} Rc1 {[%clk 01:14:15]} {[%emt 00:01:06]} 46. Rd3
{[%clk 00:22:22]} {[%emt 00:01:12]} e5 {[%clk 01:13:50]} {[%emt 00:00:55]} 47.
Rg3+ {[%clk 00:20:53]} {[%emt 00:01:58]} Kf5 {[%clk 01:14:00]} {[%emt
00:00:21]} 48. Rf3+ {[%clk 00:15:51]} {[%emt 00:05:32]} Kg6 {[%clk 01:14:16]}
{[%emt 00:00:14]} 49. Ke2 {[%clk 00:13:25]} {[%emt 00:02:57]} f5 {[%clk
01:12:03]} {[%emt 00:02:43]} 50. Rg3+ {[%clk 00:09:53]} {[%emt 00:04:03]} Kf6
{[%clk 01:12:19]} {[%emt 00:00:13]} 51. Rg8 {[%clk 00:07:07]} {[%emt 00:03:16]}
h4 {[%clk 01:09:21]} {[%emt 00:03:28]} 52. g3 {[%clk 00:04:05]} {[%emt
00:03:32]} Rh1 {[%clk 01:09:17]} {[%emt 00:00:34]} 1/2-1/2